bitfinex/quotes_ETHUSD_20250905
["timestamp","ask_amount","ask_price","bid_price","bid_amount"]
[1757081735032,2.27396761,4397.6,4396.8,2.27436696]
[1757081735261,0.49692524,4397.5,4396.3,0.01849398]
[1757081735561,2.27448391,4396.7,4396.3,0.01849398]
[1757081735764,2.38818829,4396.4,4396.3,0.01849398]
[1757081735932,2.41662064,4396.4,4396.3,0.01849398]
[1757081736134,2.85588829,4396.4,4396.3,0.01849398]
[1757081736430,2.27458829,4396.4,4396.3,0.01849398]
[1757081736632,6.355,4396.5,4396.3,0.01849398]
[1757081736832,2.30302064,4396.4,4396.3,0.01849398]
[1757081737134,1.675,4397.4,4396.4,1.2856]
[1757081737335,4.675,4397.9,4396.5,0.1136]
[1757081737533,0.1136,4397.2,4396.5,0.1136]
[1757081737783,2.27458829,4396.4,4396.3,0.01849398]
[1757081738074,2.27484701,4395.9,4395.5,0.01466319]
[1757081738272,8.64084701,4395.9,4395.5,0.01466319]
[1757081738629,2.27500227,4395.6,4395.0,0.05]
[1757081738831,9.10934701,4395.9,4393.2,0.01517081]
[1757081738832,2.27583067,4394.0,4393.2,0.01517081]
[1757081739074,8.65183067,4394.0,4393.2,0.01517081]
[1757081739257,2.27588247,4393.9,4393.2,0.01517081]
[1757081739459,2.72058247,4393.9,4393.2,0.01517081]
[1757081739768,4.7,4393.9,4393.2,0.01517081]
[1757081739934,1.675,4394.0,4393.9,2.27588247]
[1757081740139,1.675,4394.9,4393.9,0.94]
[1757081740376,1.675,4394.9,4393.2,0.01517081]
[1757081740377,4.7,4394.6,4393.4,0.94]
[1757081740576,2.27562352,4394.4,4393.2,0.01517081]
[1757081740791,2.27588247,4393.9,4393.2,0.01517081]
[1757081741085,6.62468247,4393.9,4393.2,0.01517081]
[1757081741232,0.4447,4393.9,4393.2,0.01517081]
[1757081741437,4.71,4393.9,4393.2,0.01517081]
[1757081741678,1.675,4394.9,4393.8,0.965]
[1757081741878,1.675,4394.9,4393.8,1.424]
[1757081742452,1.675,4394.9,4393.8,0.025]
[1757081742768,2.27588247,4393.9,4393.8,0.025]
[1757081742993,4.715,4393.9,4393.8,0.025]
[1757081743279,4.723,4393.9,4393.8,0.025]
[1757081743572,1.675,4394.9,4393.8,1.424]
[1757081743771,4.722,4394.5,4393.8,1.424]
[1757081743938,4.722,4394.5,4393.8,0.965]
[1757081744337,6.99758329,4394.5,4393.8,0.965]
[1757081744573,6.99757383,4394.5,4393.8,0.025]
[1757081744750,4.718,4394.7,4393.9,1.399]
[1757081745073,1.675,4394.9,4394.0,2.27583067]
[1757081745275,0.02537083,4394.8,4393.8,0.025]
[1757081745580,2.27619329,4393.3,4393.2,0.01517081]
[1757081745741,2.27619329,4393.3,4391.8,0.025]
[1757081745742,2.27660785,4392.5,4391.8,0.025]
[1757081745944,3.0,4392.3,4390.5,0.55250484]
[1757081746143,2.27702256,4391.7,4390.5,0.55250484]
[1757081746347,10.00802256,4391.7,4390.5,0.55250484]
[1757081746543,2.72172256,4391.7,4390.5,0.55250484]
[1757081746745,1.676,4392.2,4390.5,0.55250484]
[1757081746946,4.729,4392.1,4391.2,2.27728109]
[1757081747265,0.4447,4393.1,4390.9,2.29311213]
[1757081747266,4.728,4393.2,4392.4,2.27664395]
[1757081747468,4.728,4393.2,4392.4,2.27665968]
[1757081747645,4.728,4393.2,4392.3,0.94]
[1757081747844,0.1136,4393.3,4392.6,0.1136]
[1757081748046,0.1136,4393.3,4392.7,1.399]
[1757081748246,6.409,4393.4,4392.7,0.94]
[1757081748571,2.2762451,4393.2,4391.0,0.94]
[1757081748773,0.02537083,4393.1,4391.0,0.94]
[1757081749064,2.27673326,4392.3,4391.2,2.2772484]
[1757081749263,6.411,4392.2,4391.4,2.27716649]
[1757081749488,1.677,4392.2,4391.4,0.459]
[1757081749780,2.27690926,4392.0,4390.9,0.01567843]
[1757081749954,1.677,4392.2,4390.9,0.01567843]
[1757081750357,0.025,4392.8,4391.7,0.459]
[1757081750680,4.753,4392.8,4391.7,0.459]
[1757081750847,0.02537083,4392.7,4391.5,0.94]
[1757081751049,0.02537083,4392.7,4391.6,2.29257849]
[1757081751248,4.753,4392.8,4391.6,0.01550923]
[1757081751562,0.025,4392.8,4392.5,2.27655696]
[1757081751749,0.025,4392.8,4391.7,1.399]
[1757081751945,0.025,4392.8,4391.7,0.459]
[1757081752173,0.025,4392.8,4391.8,0.94]
[1757081752373,2.27654047,4392.7,4391.8,0.94]
[1757081752544,0.025,4392.8,4391.6,0.01550923]
[1757081752545,2.27676888,4392.2,4391.6,0.01550923]
[1757081752744,2.27673583,4392.3,4391.6,0.01550923]
[1757081752944,0.02537083,4392.5,4391.6,0.01550923]
[1757081753348,2.27702256,4391.7,4391.6,0.01550923]
[1757081753598,8.68302256,4391.7,4391.6,0.01550923]
[1757081753950,6.406,4391.7,4391.6,0.01550923]
[1757081754179,8.68302256,4391.7,4391.6,0.01550923]
[1757081754682,9.12772256,4391.7,4391.6,0.01550923]
[1757081755186,9.12772256,4391.7,4390.9,0.01567843]
[1757081755187,2.27738556,4391.0,4390.9,0.01567843]
[1757081755361,7.02175639,4391.0,4390.9,0.01567843]
[1757081755693,5.1217,4391.7,4390.9,0.01567843]
[1757081755849,2.27738556,4391.0,4390.9,0.01567843]
[1757081756273,6.99138556,4391.0,4390.9,0.01567843]
[1757081757405,6.99138556,4391.0,4390.5,1e-08]
[1757081757406,7.89548556,4391.0,4390.5,1e-08]
[1757081757563,0.792,4390.8,4388.6,0.01618606]
[1757081757752,2.27801535,4389.8,4388.6,0.01618606]
[1757081758085,2.27764491,4390.5,4388.6,0.01618606]
[1757081758086,2.2782157,4389.4,4388.6,0.01618606]
[1757081758287,4.739,4390.0,4388.7,0.94]
[1757081758594,2.27807566,4389.7,4389.3,0.95601685]
[1757081758797,0.1136,4389.5,4389.3,0.01601685]
[1757081758959,4.764,4389.4,4389.3,0.01601685]
[1757081759360,7.0422157,4389.4,4389.3,0.01601685]
[1757081759681,4.764,4389.4,4389.3,0.01601685]
[1757081759883,7.4869157,4389.4,4389.3,0.01601685]
[1757081760089,2.2782676,4389.3,4388.6,0.01618606]
[1757081760388,2.2782676,4389.3,4386.8,0.025]
[1757081760389,3.792,4389.0,4386.8,0.025]
[1757081760555,0.35738031,4389.4,4386.8,0.025]
[1757081760756,4.772,4389.3,4387.1,0.0227941]
[1757081760955,0.02537083,4389.2,4387.7,0.94]
[1757081761255,0.02537083,4389.2,4386.8,0.025]
[1757081761256,0.4447,4389.1,4386.8,0.025]
[1757081761454,0.02537083,4389.0,4386.8,0.025]
[1757081761654,4.908,4388.9,4387.8,0.50035527]
[1757081761852,4.93437083,4388.8,4387.8,0.04135527]
[1757081762055,3.0,4388.6,4387.8,0.04135527]
[1757081762279,4.921,4388.5,4387.8,0.04135527]
[1757081762463,3.02537083,4388.4,4387.8,0.04135527]
[1757081762767,2.2789945,4387.9,4387.8,0.04135527]
[1757081763091,2.27941008,4387.1,4387.0,0.01652447]
[1757081763391,2.279514,4386.9,4383.9,0.9572013]
[1757081763569,2.27961793,4386.7,4383.9,0.0172013]
[1757081763771,4.944,4386.6,4385.2,0.94]
[1757081763958,4.947,4386.5,4385.6,2.28016185]
[1757081764158,1.678,4388.0,4387.2,2.27934804]
[1757081764488,4.952,4388.4,4385.8,0.07134848]
[1757081764688,4.952,4388.4,4385.9,0.07134848]
[1757081764689,0.02848483,4388.3,4385.9,0.07134848]
[1757081764867,0.02848483,4388.3,4385.5,1.678]
[1757081764868,0.9041,4390.1,4386.4,3.07177384]
[1757081765076,0.9041,4390.1,4385.0,0.01004545]
[1757081765077,1.679,4389.3,4386.6,0.792]
[1757081765277,0.4447,4389.2,4385.1,0.07134848]
[1757081765493,0.792,4388.9,4385.1,0.07134848]
[1757081765681,3.0,4388.7,4385.2,2.28920817]
[1757081765881,2.27906476,4387.8,4386.2,2.27986856]
[1757081766195,5.247,4389.7,4386.4,0.792]
[1757081766359,1.679,4390.2,4386.5,5.69915177]
[1757081766560,0.271,4390.8,4386.8,0.792]
[1757081766758,0.271,4390.8,4389.0,0.792]
[1757081766966,2.244,4389.7,4388.0,0.792]
[1757081767191,2.244,4389.7,4388.5,2.2786738]
[1757081767357,0.02847639,4389.6,4388.1,0.94]
[1757081767666,3.0,4389.4,4386.5,0.459]
[1757081767865,0.02847834,4389.3,4386.6,0.94]
[1757081768070,3.0,4388.9,4386.6,3.21966483]
[1757081768269,3.0,4388.7,4386.6,0.94]
[1757081768454,3.957321,4389.2,4386.7,0.46780728]
[1757081768657,4.986,4389.1,4387.1,0.792]
[1757081768899,4.986,4389.1,4387.2,1.47033661]
[1757081769080,0.02848029,4389.0,4387.8,0.025]
[1757081769281,4.986,4389.1,4387.9,1.4166]
[1757081769793,1.679,4389.2,4388.0,0.792]
[1757081770095,4.989,4389.1,4388.1,1.4166]
[1757081770295,4.989,4389.1,4388.2,1.48793661]
[1757081770463,0.02848029,4389.0,4387.8,0.025]
[1757081770662,2.27862144,4388.7,4387.9,2.27896665]
[1757081770863,2.30694185,4389.0,4387.8,0.025]
[1757081771062,4.983,4388.9,4387.8,0.025]
[1757081771260,0.10368158,4388.8,4387.8,0.025]
[1757081771467,5.3232,4388.8,4387.8,0.025]
[1757081771664,2.2786992,4388.5,4387.8,0.025]
[1757081771897,5.3232,4388.8,4387.8,0.025]
[1757081771898,5.3232,4388.8,4387.9,0.4601]
[1757081772101,0.0752,4388.8,4388.7,2.27857907]
[1757081772303,0.0752,4388.8,4388.7,3.69517907]
[1757081772610,0.0752,4388.8,4388.7,4.55848719]
[1757081772767,0.0752,4388.8,4388.7,1.02780812]
[1757081772964,2.35372716,4388.8,4388.7,0.07130812]
[1757081773169,2.27857907,4388.7,4387.8,0.025]
[1757081773368,0.0752,4388.8,4387.9,2.2789945]
[1757081773562,0.0752,4388.8,4387.8,0.025]
[1757081773895,2.27857907,4388.7,4387.9,0.07132154]
[1757081774123,2.27857907,4388.7,4387.8,0.025]
[1757081774312,0.02848288,4388.6,4388.0,2.27890216]
[1757081774613,0.0752,4388.8,4387.8,0.028]
[1757081774919,0.02848223,4388.7,4387.9,0.0713148]
[1757081775219,0.4477,4388.6,4387.8,0.028]
[1757081775364,2.2789945,4387.9,4387.8,0.028]
[1757081775570,7.1037,4387.9,4386.3,0.9565]
[1757081775871,2.2788055,4388.3,4386.4,1.49676141]
[1757081775872,4.976,4388.3,4386.4,1.49676141]
[1757081776073,4.976,4388.3,4386.6,0.792]
[1757081776281,0.0752,4388.8,4388.7,2.27857907]
[1757081776512,0.025,4389.8,4388.7,2.27857907]
[1757081776513,0.025,4389.8,4388.8,0.792]
[1757081776670,2.87710679,4389.2,4389.1,2.27837142]
[1757081776869,0.025,4389.8,4389.7,3.07006]
[1757081777174,0.025,4389.8,4389.7,0.07130822]
[1757081777503,0.025,4389.8,4389.7,2.8094543]
[1757081777713,0.025,4389.8,4389.7,0.0712943]
[1757081778085,0.025,4389.8,4389.7,2.3493543]
[1757081778510,0.025,4389.8,4389.7,3.7659543]
[1757081778730,0.025,4390.8,4390.7,2.27754116]
[1757081778883,0.025,4390.8,4390.7,0.0712943]
[1757081779086,5.001,4390.8,4389.0,0.4601]
[1757081779387,0.1136,4390.1,4389.5,0.792]
[1757081779612,0.025,4390.8,4390.7,2.39114116]
[1757081779814,0.025,4390.8,4390.7,3.76542491]
[1757081780182,0.025,4390.8,4390.7,3.77419016]
[1757081780405,0.001,4392.2,4391.7,2.27702256]
[1757081780620,0.001,4392.2,4391.7,2.34830631]
[1757081780821,0.001,4392.2,4391.7,0.07128375]
[1757081781025,0.001,4392.2,4391.7,2.34830631]
[1757081781320,0.001,4392.2,4391.7,3.77365859]
[1757081781527,1e-08,4391.8,4391.7,4.56565859]
[1757081781695,0.001,4392.2,4392.1,2.27681519]
[1757081781897,0.001,4392.2,4392.1,2.34809894]
[1757081782118,0.001,4392.2,4392.1,3.76469894]
[1757081782325,0.001,4392.2,4392.1,0.07128375]
[1757081783313,0.001,4392.2,4391.2,2.27728183]
[1757081783619,0.001,4392.2,4391.7,2.73711678]
[1757081783830,0.001,4392.2,4391.8,0.80075109]
[1757081784027,0.001,4392.2,4392.1,2.27681519]
[1757081784229,0.001,4392.2,4392.1,3.06881519]
[1757081784396,0.001,4392.2,4392.1,3.69341519]
[1757081784719,0.001,4392.2,4392.1,4.49416229]
[1757081784923,0.001,4392.2,4392.1,1.4166]
[1757081785089,0.001,4392.2,4392.1,6.3696]
[1757081785288,0.001,4392.2,4391.9,6.631]
[1757081785519,0.001,4392.2,4391.3,3.0956]
[1757081785920,0.001,4392.2,4391.3,2.1391]
[1757081786122,0.001,4392.2,4390.6,1.4166]
[1757081786309,2.27698444,4391.8,4390.6,1.4166]
[1757081786509,2.27742728,4391.0,4389.8,0.4851]
[1757081786710,0.02846278,4391.7,4389.8,0.4851]
[1757081786896,2.27724102,4391.3,4389.8,0.025]
[1757081787093,1.39366602,4391.2,4389.8,0.025]
[1757081787294,2.27743742,4390.9,4389.8,0.025]
[1757081787520,3.98390538,4390.9,4390.8,1e-08]
[1757081787725,5.34910538,4390.9,4390.8,1e-08]
[1757081788021,5.32063742,4390.9,4390.8,1e-08]
[1757081788244,8.32063742,4390.9,4390.8,1e-08]
[1757081789317,2.1257,4391.7,4390.8,1e-08]
[1757081789519,2.15416278,4391.7,4390.8,1e-08]
[1757081789730,2.27723639,4391.3,4390.8,1e-08]
[1757081790050,0.9175,4391.6,4390.8,1e-08]
[1757081790218,2.27777608,4392.2,4390.9,0.4601]
[1757081790219,0.001,4392.2,4390.9,0.4601]
[1757081790825,0.001,4392.2,4391.6,2.27707282]
[1757081791226,0.02846018,4392.1,4390.8,1e-08]
[1757081791427,0.47616018,4392.1,4390.8,1e-08]
[1757081791628,0.4477,4392.1,4390.8,1e-08]
[1757081791919,2.27742759,4391.0,4390.8,1e-08]
[1757081792561,4.918,4391.5,4390.8,1e-08]
[1757081792730,2.27743742,4390.9,4390.8,1e-08]
[1757081793154,3.64263742,4390.9,4390.8,1e-08]
[1757081793659,6.64263742,4390.9,4390.8,1e-08]
[1757081794273,3.64263742,4390.9,4390.8,1e-08]
[1757081795144,3.67110538,4390.9,4390.8,1e-08]
[1757081795462,3.64263742,4390.9,4390.8,1e-08]
[1757081795837,3.67110538,4390.9,4390.8,1e-08]
[1757081796348,3.64263742,4390.9,4390.8,1e-08]
[1757081796768,3.67110538,4390.9,4390.8,1e-08]
[1757081797062,3.64263742,4390.9,4390.8,1e-08]
[1757081797831,11.52163742,4390.9,4390.8,1e-08]
[1757081798451,3.0,4390.8,4389.8,1e-08]
[1757081798760,2.27795621,4389.9,4389.8,1e-08]
[1757081798974,2.27903099,4387.9,4387.1,3.23585956]
[1757081799172,2.27909838,4387.7,4386.3,2.27981711]
[1757081799464,0.4542,4388.2,4386.8,2.27954272]
[1757081799465,2.27924195,4387.5,4386.8,2.27954272]
[1757081799639,4.87,4387.9,4386.4,2.27977384]
[1757081799843,0.1136,4387.3,4386.5,0.1136]
[1757081800067,1.679,4388.4,4386.6,1.3672]
[1757081800234,0.1136,4388.0,4387.3,0.1136]
[1757081800438,4.879,4388.5,4388.1,2.27884721]
[1757081800656,4.879,4388.5,4388.1,0.9068]
[1757081800857,4.879,4388.9,4388.1,0.9068]
[1757081801057,4.879,4388.9,4387.5,0.9068]
[1757081801262,4.879,4388.9,4388.3,2.27875338]
[1757081801457,4.879,4388.9,4387.6,2.73955033]
[1757081801458,7.15749412,4388.9,4387.6,0.4604]
[1757081801766,4.879,4388.9,4388.3,2.27877477]
[1757081801968,1.679,4390.2,4388.4,2.27868812]
[1757081802174,4.90047315,4390.1,4388.4,2.27873484]
[1757081802379,4.872,4390.1,4388.2,1.3672]
[1757081802585,1.679,4390.2,4387.6,1.679]
[1757081802733,0.025,4390.8,4388.7,0.792]
[1757081802933,0.025,4390.8,4388.8,0.792]
[1757081803240,0.02846926,4390.7,4388.9,2.27847524]
[1757081803441,0.025,4390.8,4390.7,2.27754116]
[1757081803765,0.025,4390.8,4389.3,0.792]
[1757081803948,0.025,4390.8,4389.3,0.4604]
[1757081804138,0.02846926,4390.7,4389.3,0.4604]
[1757081804478,0.025,4390.8,4389.3,0.4604]
[1757081804658,0.025,4390.8,4389.5,2.27816379]
[1757081804864,0.025,4390.8,4389.4,0.9068]
[1757081805065,2.27808737,4389.7,4388.2,1.3672]
[1757081805238,3.05876926,4390.7,4388.8,2.27851887]
[1757081805239,4.868,4389.6,4388.8,2.27851887]
[1757081805433,4.868,4389.6,4388.2,1.3672]
[1757081805639,7.14612335,4389.6,4388.8,2.27852654]
[1757081805978,0.02847704,4389.5,4387.6,2.2791462]
[1757081806139,2.2784598,4389.0,4387.5,0.9068]
[1757081806340,2.27864868,4388.6,4387.5,0.9068]
[1757081806549,2.27882332,4388.3,4387.5,0.9068]
[1757081806752,0.02848548,4388.2,4387.3,0.4604]
[1757081807067,2.27878677,4388.3,4387.3,0.4604]
[1757081807280,0.02848418,4388.4,4386.7,1.3672]
[1757081807448,2.27894257,4388.0,4385.6,2.2801534]
[1757081807651,2.27904644,4387.8,4385.9,0.9068]
[1757081807835,0.02848872,4387.7,4385.3,2.1394]
[1757081810039,2.27939782,4387.2,4385.4,0.4604]
[1757081810354,2.27974195,4386.5,4385.5,2.2802417]
[1757081810562,2.27971024,4386.6,4385.8,2.28006073]
[1757081810763,2.39362194,4386.0,4385.3,2.39394452]
[1757081810969,2.39362194,4386.0,4385.0,2.29054395]
[1757081810970,0.1136,4385.7,4385.0,0.12364545]
[1757081811581,2.3937476,4385.7,4385.0,0.12364545]
[1757081811851,0.1136,4385.4,4385.0,0.01004545]
[1757081812047,0.1136,4385.4,4385.2,2.28035188]
[1757081812261,0.1136,4385.4,4385.0,0.01004545]
[1757081812468,2.2804497,4385.1,4385.0,0.01004545]
[1757081812674,3.98795532,4385.1,4385.0,0.01004545]
[1757081812856,2.28055371,4384.9,4384.8,0.025]
[1757081813065,4.824,4384.9,4384.8,0.025]
[1757081813279,7.55875371,4384.9,4384.8,0.025]
[1757081813584,8.45585371,4384.9,4384.8,0.025]
[1757081813793,2.28065774,4384.7,4383.8,0.028]
[1757081814000,2.28128208,4383.5,4383.4,0.71359026]
[1757081814199,10.13458208,4383.5,4383.4,0.71359026]
[1757081814426,13.13458208,4383.5,4383.4,0.71359026]
[1757081814558,13.13458208,4383.5,4381.6,0.01770893]
[1757081814559,2.27985366,4382.5,4381.6,0.01770893]
[1757081814758,8.77885366,4382.5,4381.6,0.01770893]
[1757081814960,4.85695366,4382.5,4381.6,0.01770893]
[1757081815179,2.28206298,4382.0,4381.6,0.01770893]
[1757081815395,2.31058876,4382.0,4381.6,0.01770893]
[1757081815597,7.13358876,4382.0,4381.6,0.01770893]
[1757081815766,8.00216298,4382.0,4381.6,0.01770893]
[1757081816658,7.10506298,4382.0,4381.6,0.01770893]
[1757081816859,4.823,4382.0,4381.6,0.01770893]
[1757081817082,4.823,4382.0,4381.9,2.78211506]
[1757081817287,4.823,4382.0,4381.9,0.5]
[1757081817588,4.821,4382.2,4381.9,0.5]
[1757081817791,2.28206298,4382.0,4381.9,0.5]
[1757081818491,6.53506298,4382.0,4381.6,0.01770893]
[1757081818676,17.5125738,4381.8,4381.6,1e-08]
[1757081818880,2.31074696,4381.7,4381.6,1e-08]
[1757081819083,3.20784696,4381.7,4381.6,1e-08]
[1757081819284,2.28253178,4381.1,4380.9,0.01787813]
[1757081819593,2.28253178,4381.1,4380.1,0.01804734]
[1757081819594,2.28300077,4380.2,4380.1,0.01804734]
[1757081819891,2.28367854,4378.9,4377.8,0.50395497]
[1757081820068,6.52654598,4378.9,4377.8,0.50395497]
[1757081820274,6.498,4378.9,4377.8,0.50395497]
[1757081820467,6.498,4378.9,4377.8,0.04355497]
[1757081820666,6.498,4378.9,4378.8,0.4854]
[1757081820667,6.497,4378.9,4378.8,0.4854]
[1757081820964,6.496,4378.9,4378.8,0.025]
[1757081821175,6.496,4378.9,4377.8,0.03694073]
[1757081821353,0.02854663,4378.8,4377.8,0.03694073]
[1757081821557,2.2837307,4378.8,4377.8,0.03694073]
[1757081821759,3.0,4378.6,4377.8,0.03694073]
[1757081821954,2.28399704,4378.3,4377.8,0.03694073]
[1757081822158,2.28420018,4377.9,4377.8,1e-08]
[1757081822357,2.28440127,4377.6,4375.8,0.025]
[1757081822568,3.0,4376.0,4373.8,0.025]
[1757081822789,1.70956555,4375.9,4373.8,0.025]
[1757081823113,0.1136,4374.0,4373.9,1.3672]
[1757081823275,1.681,4375.9,4373.9,0.9068]
[1757081823603,0.108,4375.8,4374.0,0.00897328]
[1757081823908,3.0,4375.6,4373.8,0.025]
[1757081824208,2.28580424,4374.9,4373.8,0.025]
[1757081824493,2.28580424,4374.9,4370.8,0.025]
[1757081824494,2.28665508,4373.2,4370.8,0.4854]
[1757081824657,0.02858384,4373.1,4370.9,1.3672]
[1757081824986,4.524,4373.0,4371.0,1.37621139]
[1757081825191,12.23040666,4373.7,4370.8,0.025]
[1757081825192,3.0,4372.8,4370.8,0.025]
[1757081825384,0.02858645,4372.7,4370.8,0.025]
[1757081825751,4.869,4372.7,4370.9,1.3672]
[1757081825856,1.1547,4372.6,4370.8,0.025]
[1757081826204,0.37917319,4372.5,4370.8,0.025]
[1757081826405,3.0,4372.3,4370.8,0.025]
[1757081826561,3.0,4372.1,4370.8,0.025]
[1757081826897,0.02859103,4372.0,4370.8,0.025]
[1757081827055,0.02859103,4372.0,4370.9,0.4604]
[1757081827255,5.259,4373.3,4370.9,1.3672]
[1757081827256,4.993,4373.0,4370.9,1.3672]
[1757081827460,1.683,4374.3,4371.0,1.3672]
[1757081827693,1.683,4374.3,4371.2,3.0]
[1757081827864,2.2861824,4374.2,4371.5,2.28752231]
[1757081828060,1.1547,4374.1,4371.7,0.792]
[1757081828372,1.1547,4374.1,4370.8,0.025]
[1757081828373,4.683,4374.0,4371.5,0.4604]
[1757081828564,0.02857861,4373.9,4371.5,0.4604]
[1757081828767,0.8971,4374.1,4371.6,0.9068]
[1757081828997,0.02857796,4374.0,4371.7,0.4604]
[1757081829159,0.02857796,4374.0,4372.1,2.28721477]
[1757081829505,0.02857796,4374.0,4371.2,0.4308]
[1757081829506,2.28634139,4373.8,4371.2,0.4308]
[1757081829690,0.9163,4373.7,4371.2,0.4308]
[1757081829857,0.02858057,4373.6,4371.3,0.9261]
[1757081830058,1.683,4373.5,4371.4,0.4308]
[1757081830258,6.945,4373.5,4371.4,0.4308]
[1757081830458,0.68761052,4375.0,4372.1,0.792]
[1757081830703,0.025,4373.8,4373.7,2.28639367]
[1757081830911,0.025,4374.8,4374.7,2.28587103]
[1757081831065,2.26,4376.2,4375.6,2.28539904]
[1757081831390,2.28534862,4375.7,4374.1,1.3569]
[1757081831603,0.02856685,4375.7,4374.2,0.4308]
[1757081831809,0.02856424,4376.1,4375.6,2.28540085]
[1757081831974,1e-08,4376.8,4376.7,2.28482646]
[1757081832173,1.684,4378.7,4375.7,1.3569]
[1757081832174,0.68707666,4378.5,4375.7,1.3569]
[1757081832387,0.464,4377.6,4375.7,1.3569]
[1757081832559,0.02855511,4377.5,4375.8,0.4308]
[1757081832759,2.276,4377.7,4375.8,0.4308]
[1757081832989,5.07955445,4377.6,4372.9,2.2867771]
[1757081833198,5.07955445,4377.6,4370.8,0.025]
[1757081833199,1.1739,4377.5,4373.0,1.3569]
[1757081833417,12.23040666,4376.3,4373.0,1.3569]
[1757081833624,3.0,4377.0,4373.4,2.2865505]
[1757081833625,3.07713973,4376.1,4373.4,2.2865505]
[1757081833809,13.27572738,4376.2,4373.1,0.4308]
[1757081833810,7.8633,4376.2,4373.5,1.3569]
[1757081834011,6.947,4376.2,4373.6,15.8569]
[1757081834208,6.2419,4376.1,4372.8,0.9261]
[1757081834410,1.1739,4376.1,4372.9,0.4308]
[1757081834642,5.068,4376.0,4373.0,3.22183726]
[1757081834846,5.068,4376.0,4373.1,1.36587953]
[1757081834847,2.28532381,4375.8,4373.1,1.36587953]
[1757081834988,1.684,4376.2,4373.5,0.792]
[1757081835189,2.28528587,4375.9,4373.9,0.003]
[1757081835394,2.28530773,4375.8,4373.9,0.003]
[1757081835637,0.02856555,4375.9,4373.9,2.28928245]
[1757081835794,1.684,4376.2,4374.0,3.6431152]
[1757081836122,2.6003,4378.1,4374.2,0.792]
[1757081836292,0.025,4378.8,4377.7,2.28430454]
[1757081836492,0.9163,4381.6,4377.7,6.0409]
[1757081836724,2.28305874,4380.1,4377.8,1.36582641]
[1757081837042,0.05354011,4379.8,4377.9,1.3569]
[1757081837338,0.025,4379.8,4379.7,2.28326141]
[1757081837541,0.025,4379.8,4379.7,1.3569]
[1757081837693,0.025,4379.8,4379.7,0.4308]
[1757081837894,0.025,4379.8,4378.9,0.4308]
[1757081838370,0.025,4379.8,4377.8,2.28424136]
[1757081838371,0.02854076,4379.7,4377.9,0.4308]
[1757081838532,0.025,4379.8,4379.0,0.4308]
[1757081838742,0.025,4379.8,4379.7,2.28326141]
[1757081839033,0.02853425,4380.7,4379.1,0.9261]
[1757081839271,0.02853425,4380.7,4379.0,0.4308]
[1757081839272,1.724,4380.6,4379.0,0.4308]
[1757081839435,0.32586379,4380.7,4379.1,0.4308]
[1757081839768,2.28306956,4380.1,4379.1,0.4308]
[1757081839940,5.15253881,4380.0,4378.2,0.4308]
[1757081840268,1.709,4380.8,4378.3,0.9261]
[1757081840434,2.28279231,4380.6,4378.3,0.9261]
[1757081840629,0.94483555,4380.5,4378.2,0.4308]
[1757081840934,1.684,4380.5,4378.8,0.025]
[1757081841137,3.0285362,4380.4,4378.9,1.3569]
[1757081841337,2.28367854,4378.9,4378.8,0.025]
[1757081841633,1.684,4378.9,4378.8,0.025]
[1757081841838,4.81217469,4381.2,4378.8,1.3819]
[1757081842163,2.28279231,4380.6,4378.8,0.025]
[1757081842367,0.792,4380.2,4378.8,0.025]
[1757081842552,5.29053816,4380.1,4378.8,0.025]
[1757081842737,9.82,4380.0,4378.8,0.025]
[1757081842934,1.683,4380.0,4378.8,0.025]
[1757081843135,5.16353946,4379.9,4378.8,0.025]
[1757081843359,1.683,4380.0,4378.8,0.025]
[1757081843360,2.28365525,4379.0,4378.8,0.025]
[1757081843558,1.683,4378.9,4378.8,0.025]
[1757081843769,1.683,4379.0,4378.8,0.025]
[1757081843973,0.1136,4378.9,4378.8,0.025]
[1757081844273,7.41367854,4378.9,4378.8,0.025]
[1757081844592,11.4986991,4378.9,4378.8,0.025]
[1757081844769,3.0,4378.8,4376.8,0.025]
[1757081845071,4.41762056,4378.9,4376.8,0.025]
[1757081845072,4.08502056,4378.9,4376.8,0.025]
[1757081845259,2.28420018,4377.9,4376.8,0.025]
[1757081845462,6.99575268,4377.9,4377.8,1e-08]
[1757081845770,8.21610018,4377.9,4377.8,1e-08]
[1757081845948,7.88350018,4377.9,4377.8,1e-08]
[1757081846135,13.33510018,4377.9,4377.8,1e-08]
[1757081846468,6.96720018,4377.9,4377.8,1e-08]
[1757081846674,12.08620018,4377.9,4377.8,1e-08]
[1757081846847,6.96720018,4377.9,4377.8,1e-08]
[1757081847050,12.08520018,4377.9,4377.8,1e-08]
[1757081847485,6.96720018,4377.9,4377.8,1e-08]
[1757081847666,12.08140018,4377.9,4377.8,1e-08]
[1757081847842,1.683,4377.9,4377.8,1e-08]
[1757081848178,5.111,4378.6,4377.8,1e-08]
[1757081848397,0.3586,4379.8,4377.9,4.44]
[1757081848398,0.026,4379.8,4377.9,4.44]
[1757081848695,0.026,4379.8,4378.0,1.3569]
[1757081849055,0.026,4379.8,4378.2,2.28404367]
[1757081849260,0.02854076,4379.7,4378.1,3.64095524]
[1757081849502,0.02854076,4379.7,4378.1,1.3569]
[1757081849503,1.71154076,4379.7,4378.1,1.3569]
[1757081849659,2.28331354,4379.6,4378.1,0.4308]
[1757081849858,3.96630195,4379.7,4378.2,0.9261]
[1757081850158,0.02854141,4379.6,4378.1,0.4308]
[1757081850364,2.28399249,4378.3,4378.1,0.4308]
[1757081850560,5.115,4378.9,4378.2,0.4308]
[1757081850772,0.02854337,4379.3,4378.2,0.4308]